bitfinex-derivatives/quotes_SOLF0:USTF0_20250110
["timestamp","ask_amount","ask_price","bid_price","bid_amount"]
[1736491120230,6.79917656,190.21,190.16,6.79917656]
[1736491120526,2.6288,190.21,190.17,2.6293]
[1736491121126,2.6288,190.21,190.16,9.42857656]
[1736491121127,9.42797656,190.21,190.16,9.42857656]
[1736491121526,9.42797656,190.21,190.16,2.6294]
[1736491122429,9.42797656,190.21,190.17,2.6293]
[1736491124933,2.6288,190.21,190.17,2.6293]
[1736491125133,2.6286,190.22,190.17,2.6293]
[1736491125935,6.79917656,190.25,190.18,6.79917656]
[1736491126132,6.79917656,190.27,190.2,6.79917656]
[1736491126528,2.6281,190.26,190.22,2.6285]
[1736491126736,6.79917656,190.27,190.22,2.6285]
[1736491127127,9.42717656,190.27,190.23,2.6285]
[1736491127328,8.39477656,190.29,190.22,6.79917656]
[1736491127533,6.79917656,190.29,190.22,6.79917656]
[1736491127740,6.79917656,190.29,190.26,2.628]
[1736491128032,6.79917656,190.29,190.22,6.79917656]
[1736491128235,2.6281,190.26,190.22,2.6286]
[1736491128431,2.6281,190.26,190.2,6.79917656]
[1736491129835,2.6281,190.26,190.21,2.6287]
[1736491131734,9.42737656,190.25,190.2,9.42807656]
[1736491131935,6.79917656,190.23,190.18,6.79917656]
[1736491132432,6.79917656,190.21,190.16,7.29838927]
[1736491132637,6.79917656,190.21,190.15,21.76826754]
[1736491132837,6.79917656,190.21,190.14,14.09756583]
[1736491133236,6.79917656,190.21,190.14,6.79917656]
[1736491133740,2.6289,190.2,190.15,2.6295]
[1736491134039,6.79917656,190.21,190.14,6.79917656]
[1736491134434,9.42797656,190.21,190.16,2.6294]
[1736491135438,6.79917656,190.19,190.14,6.79917656]
[1736491136344,6.79917656,190.19,190.15,2.6295]
[1736491136532,6.79917656,190.19,190.14,6.79917656]
[1736491137639,9.42797656,190.21,190.16,2.6294]
[1736491137946,4.5319,190.26,190.18,6.79917656]
[1736491138238,11.33107656,190.26,190.2,6.79917656]
[1736491139243,13.95927656,190.26,190.21,2.6286]
[1736491139434,6.79917656,190.24,190.18,6.79917656]
[1736491139939,2.6285,190.23,190.19,2.6289]
[1736491140140,2.6285,190.23,190.18,6.79917656]
[1736491140441,6.79917656,190.24,190.18,6.79917656]
[1736491140641,6.79917656,190.22,190.16,6.79917656]
[1736491141237,6.79917656,190.2,190.14,6.79917656]
[1736491142141,2.629,190.19,190.14,9.42887656]
[1736491142346,6.79917656,190.23,190.16,6.79917656]
[1736491143240,6.79917656,190.23,190.18,2.6292]
[1736491144244,6.79917656,190.21,190.18,2.6292]
[1736491144443,6.79917656,190.21,190.17,2.6293]
[1736491145041,2.6289,190.2,190.15,2.6295]
[1736491145351,6.79917656,190.19,190.15,2.6295]
[1736491146550,4.5319,190.26,190.11,30.64135681]
[1736491146751,6.79917656,190.23,190.16,6.79917656]
[1736491147049,2.6287,190.22,190.16,6.79917656]
[1736491147251,6.79917656,190.21,190.17,2.6293]
[1736491147445,2.6289,190.2,190.16,6.79917656]
[1736491149350,2.6289,190.2,190.15,2.6295]
[1736491149653,4.5319,190.26,190.16,6.79917656]
[1736491149855,6.79917656,190.22,190.16,6.79917656]
[1736491151048,9.42777656,190.22,190.18,2.6291]
[1736491151251,6.79917656,190.22,190.14,6.79917656]
[1736491151452,6.79917656,190.2,190.14,6.79917656]
[1736491151652,9.42807656,190.2,190.15,2.6295]
[1736491152255,4.5319,190.26,190.18,6.79917656]
[1736491152449,2.6282,190.25,190.2,6.79917656]
[1736491152655,6.79917656,190.29,190.22,6.79917656]
[1736491153653,2.628,190.27,190.22,6.79917656]
[1736491154051,2.628,190.27,190.24,6.79917656]
[1736491154548,9.42697656,190.29,190.24,6.79917656]
[1736491154750,9.86747656,190.32,190.26,6.79917656]
[1736491154954,7.27822625,190.4,190.28,6.79917656]
[1736491155155,2.6271,190.34,190.28,9.42687656]
[1736491155354,6.79917656,190.33,190.26,6.79917656]
[1736491155758,2.6274,190.31,190.26,9.42707656]
[1736491156261,6.79917656,190.29,190.2,7.29838927]
[1736491156460,6.79917656,190.27,190.21,9.42787656]
[1736491156866,6.79917656,190.29,190.21,9.42787656]
[1736491158049,2.628,190.27,190.21,9.42787656]
[1736491159456,2.628,190.27,190.21,2.6287]
[1736491161061,2.628,190.27,190.22,2.6286]
[1736491162260,13.68257627,190.32,190.24,2.6283]
[1736491162261,2.6277,190.29,190.24,2.6283]
[1736491162465,3.0695,190.32,190.22,10.61307627]
[1736491162864,5.6968,190.32,190.26,2.628]
[1736491163862,5.6968,190.32,190.27,2.6279]
[1736491164260,2.6273,190.32,190.27,2.6279]
[1736491164460,2.6268,190.35,190.3,2.6275]
[1736491164665,1.6328,190.37,190.28,10.61307627]
[1736491166072,2.6267,190.36,190.31,2.6273]
[1736491168574,2.6269,190.35,190.31,2.6273]
[1736491169978,10.61307627,190.42,190.33,2.6271]
[1736491170178,10.61307627,190.42,190.28,10.61307627]
[1736491170580,2.6264,190.38,190.28,10.61307627]
[1736491170980,10.61307627,190.42,190.28,10.61307627]
[1736491171783,1.5529,190.41,190.28,10.61307627]
[1736491171980,10.61307627,190.39,190.25,12.12977627]
[1736491173180,2.627,190.34,190.29,2.6276]
[1736491173378,2.627,190.34,190.25,12.12977627]
[1736491173780,2.627,190.34,190.27,2.6278]
[1736491174083,2.627,190.34,190.25,12.12977627]
[1736491174285,2.627,190.34,190.28,2.6277]
[1736491174579,2.627,190.34,190.25,12.12977627]
[1736491175282,2.627,190.34,190.25,10.61307627]
[1736491176081,2.627,190.34,190.29,2.6276]
[1736491176787,10.61307627,190.37,190.25,10.61307627]
[1736491176982,2.6272,190.32,190.22,10.42315254]
[1736491177187,10.61307627,190.34,190.22,10.42315254]
[1736491178381,3.1269,190.33,190.22,10.42315254]
[1736491178682,2.6279,190.28,190.23,2.6284]
[1736491179283,2.6277,190.29,190.23,2.6284]
[1736491179490,10.61307627,190.31,190.23,2.6284]
[1736491179786,2.6279,190.27,190.22,2.6286]
[1736491179985,2.6279,190.27,190.19,10.61307627]
[1736491180187,10.61307627,190.31,190.19,10.61307627]
[1736491180388,2.6277,190.29,190.19,10.61307627]
[1736491180682,10.61307627,190.31,190.19,10.61307627]
[1736491181087,2.628,190.27,190.22,2.6286]
[1736491181286,9.42124913,190.27,190.22,2.6286]
[1736491184189,6.79324913,190.27,190.21,6.79324913]
[1736491184392,4.7276,190.33,190.21,6.79324913]
[1736491184689,6.79324913,190.29,190.21,6.79324913]
[1736491184889,6.79324913,190.29,190.24,2.6283]
[1736491185487,6.79324913,190.29,190.25,2.6282]
[1736491187492,9.42094913,190.29,190.25,2.6282]
[1736491191993,6.79324913,190.29,190.23,6.79324913]
[1736491193092,9.42094913,190.29,190.25,2.6282]
[1736491195996,9.42094913,190.29,190.23,6.79324913]
[1736491195997,2.6278,190.28,190.24,2.6283]
[1736491197095,6.79324913,190.27,190.21,6.79324913]
[1736491197295,9.42124913,190.27,190.22,2.6285]
[1736491197598,9.42124913,190.27,190.21,6.79324913]
[1736491197802,9.42124913,190.27,190.23,2.6285]
[1736491198899,9.42094913,190.29,190.24,2.6282]
[1736491199700,9.42094913,190.29,190.25,2.6282]
[1736491200303,2.6281,190.26,190.22,2.6286]
[1736491203405,9.42124913,190.27,190.22,2.6286]
[1736491207606,4.56,190.32,190.19,2.629]
[1736491207607,6.79324913,190.25,190.19,2.629]
[1736491208204,6.79324913,190.23,190.19,2.629]
[1736491208410,6.79324913,190.23,190.16,7.29838927]
[1736491208411,6.79324913,190.23,190.17,2.6292]
[1736491208702,6.79324913,190.21,190.16,7.29838927]
[1736491208910,6.79324913,190.23,190.16,6.79324913]
[1736491209105,14.48004913,190.25,190.2,6.79324913]
[1736491209312,1.5259,190.26,190.22,6.79324913]
[1736491210210,1.5259,190.26,190.22,9.42174913]
[1736491212305,1.5259,190.26,190.22,6.79324913]
[1736491212506,1.5259,190.26,190.23,2.6284]
[1736491215806,10.94734913,190.26,190.21,2.6287]
[1736491216016,6.79324913,190.24,190.18,7.29838927]
[1736491216212,6.79324913,190.24,190.18,14.0916384]
[1736491216513,1.5831,190.25,190.18,14.0916384]
[1736491216813,1.5831,190.25,190.18,6.79324913]
[1736491218114,4.2113,190.25,190.2,2.6289]
[1736491221322,6.79324913,190.24,190.2,2.6289]
[1736491222621,6.79324913,190.28,190.2,6.79324913]
[1736491223120,9.42104913,190.28,190.23,2.6284]
[1736491223522,6.79324913,190.26,190.23,2.6284]
[1736491224520,9.42144913,190.26,190.21,2.6287]
[1736491224721,6.79324913,190.26,190.21,2.6287]
[1736491225124,2.6283,190.25,190.21,2.6287]
[1736491225823,6.79324913,190.26,190.18,6.79324913]
[1736491226024,3.0294,190.31,190.22,6.79324913]
[1736491226225,6.79324913,190.29,190.22,6.79324913]
[1736491226525,2.6279,190.27,190.24,2.6283]
[1736491226824,2.6279,190.27,190.22,6.79324913]
[1736491228022,3.0294,190.31,190.24,6.79324913]
[1736491228225,9.82264913,190.31,190.24,6.79324913]
[1736491228423,8.32974913,190.31,190.24,6.79324913]
[1736491228721,10.95714913,190.31,190.27,2.6279]
[1736491229025,8.32974913,190.31,190.24,6.79324913]
[1736491229725,2.6276,190.3,190.26,2.628]
[1736491229925,6.79324913,190.29,190.22,6.79324913]
[1736491230630,9.42094913,190.29,190.24,2.6283]
[1736491231525,9.42094913,190.29,190.25,2.6282]
[1736491233329,6.79324913,190.29,190.22,6.79324913]
[1736491234225,3.144,190.31,190.24,6.79324913]
[1736491234428,9.42064913,190.32,190.26,6.79324913]
[1736491236137,9.42064913,190.32,190.28,2.6277]
[1736491236533,4.6785,190.41,190.28,6.79324913]
[1736491236728,6.79324913,190.35,190.3,2.6274]
[1736491236932,9.42014913,190.35,190.3,2.6274]
[1736491237938,2.627,190.34,190.3,2.6274]
[1736491239641,9.42004913,190.35,190.31,2.6274]
[1736491240844,2.627,190.34,190.31,2.6274]
[1736491241341,2.627,190.34,190.3,2.6275]
[1736491241741,6.79324913,190.35,190.28,6.79324913]
[1736491241939,4.56,190.4,190.24,1.6195]
[1736491241940,2.6273,190.32,190.27,2.6278]
[1736491242341,2.6273,190.32,190.26,6.79324913]
[1736491242542,2.6273,190.32,190.28,2.6277]
[1736491247149,9.42034913,190.33,190.28,2.6277]
[1736491249344,9.42034913,190.33,190.29,2.6276]
[1736491251350,9.42004913,190.36,190.31,2.6274]
[1736491251844,2.6268,190.35,190.31,2.6274]
[1736491252241,6.79324913,190.34,190.31,2.6274]
[1736491254949,2.6268,190.35,190.31,2.6274]
[1736491256357,9.41994913,190.36,190.32,2.6272]
[1736491256551,9.41994913,190.36,190.3,6.79324913]
[1736491258056,9.41994913,190.36,190.32,2.6272]
[1736491260158,6.79324913,190.34,190.24,29.06665681]
[1736491260355,6.79324913,190.32,190.24,29.06665681]
[1736491260555,9.42054913,190.32,190.25,14.0916384]
[1736491261255,9.42054913,190.32,190.27,2.6279]
[1736491261856,6.79324913,190.3,190.23,6.79324913]
[1736491262554,9.42084913,190.3,190.25,2.6281]
[1736491263563,6.79324913,190.28,190.23,9.42164913]
[1736491263859,6.79324913,190.28,190.23,6.79324913]
[1736491264560,6.79324913,190.28,190.25,2.6282]
[1736491264861,9.42074913,190.3,190.25,2.6282]
[1736491265161,9.42074913,190.3,190.26,2.6281]
[1736491266057,6.79324913,190.3,190.26,2.6281]
[1736491267162,6.79324913,190.3,190.25,6.79324913]
[1736491267359,9.95924913,190.32,190.27,6.79324913]
[1736491267561,7.6898,190.39,190.29,6.79324913]
[1736491267864,6.79324913,190.37,190.31,6.79324913]
[1736491268863,6.79324913,190.33,190.25,4.56]
[1736491269062,6.79324913,190.33,190.27,6.79324913]
[1736491269461,6.79324913,190.33,190.29,2.6275]
[1736491270167,9.42024913,190.35,190.3,2.6275]
[1736491272269,6.79324913,190.35,190.29,6.79324913]
[1736491272465,6.79324913,190.35,190.32,2.6272]
[1736491274074,6.79324913,190.35,190.31,2.6273]
[1736491274871,6.79324913,190.35,190.32,2.6272]
[1736491280762,2.6267,190.36,190.32,2.6272]
[1736491280967,9.41994913,190.36,190.32,2.6272]
[1736491281472,9.41994913,190.36,190.29,6.79324913]
[1736491282272,9.41994913,190.36,190.32,2.6271]
[1736491284776,9.41994913,190.36,190.33,2.6271]
[1736491285877,6.79324913,190.38,190.31,6.79324913]
[1736491286179,6.79324913,190.38,190.33,6.79324913]
[1736491287076,6.79324913,190.38,190.35,2.6267]
[1736491295083,6.79324913,190.38,190.31,6.79324913]
[1736491295084,6.79324913,190.36,190.34,2.6269]
[1736491296782,9.41974913,190.38,190.34,2.6269]
[1736491298986,6.79324913,190.38,190.35,2.6268]
[1736491300281,1.5816,190.39,190.35,2.6268]
[1736491300282,1.6417,190.42,190.38,2.6264]
[1736491300484,1.6259,190.43,190.37,6.79324913]
[1736491300786,6.0411,190.49,190.39,6.79324913]
[1736491300787,9.41854913,190.46,190.39,6.79324913]
[1736491300981,1.5011,190.49,190.43,2.6257]
[1736491301187,6.79324913,190.48,190.43,6.79324913]
[1736491301386,3.0646,190.53,190.43,6.79324913]
[1736491301582,6.79324913,190.51,190.46,2.6253]
[1736491301778,6.79324913,190.51,190.43,6.79324913]
[1736491305892,10.94844913,190.53,190.48,2.625]
[1736491306190,8.32404913,190.53,190.47,6.79324913]
[1736491306392,1.5308,190.53,190.49,2.6249]
[1736491307599,4.1253,190.54,190.49,2.6249]
[1736491307893,2.6244,190.53,190.49,2.6249]
[1736491309193,2.6242,190.54,190.49,2.6249]
[1736491312198,6.79324913,190.53,190.48,2.625]
[1736491312400,6.79324913,190.53,190.47,6.79324913]
[1736491313404,6.79324913,190.55,190.47,6.79324913]
[1736491313600,2.6238,190.57,190.52,2.6245]
[1736491313896,3.1246,190.59,190.53,6.79324913]
[1736491315204,5.7482,190.59,190.54,2.6242]
[1736491315801,2.6238,190.57,190.51,9.41774913]
[1736491316498,2.6238,190.57,190.52,2.6244]
[1736491318504,2.6238,190.57,190.53,6.79324913]
[1736491319204,1.5422,190.59,190.53,6.79324913]
[1736491319508,4.1658,190.59,190.54,2.6242]
[1736491323417,2.6233,190.61,190.56,2.6239]
[1736491324509,2.6233,190.61,190.57,2.6237]
[1736491324813,2.6231,190.62,190.57,9.41694913]
[1736491325010,4.8628,190.64,190.59,9.41664913]
[1736491325316,2.623,190.63,190.58,6.79324913]
[1736491325510,2.623,190.63,190.58,9.41684913]
[1736491326815,7.4857,190.64,190.59,2.6234]
[1736491327516,4.8628,190.64,190.59,2.6234]
[1736491327818,2.623,190.63,190.59,2.6234]
[1736491329016,3.231,190.64,190.6,6.79324913]
[1736491329220,3.231,190.64,190.6,9.41644913]
[1736491329414,1.5395,190.68,190.62,6.79324913]
[1736491330017,2.6225,190.67,190.62,9.41624913]
[1736491330516,6.79324913,190.67,190.59,6.79324913]
[1736491330716,9.88174913,190.67,190.59,6.79324913]
[1736491332116,2.6227,190.65,190.61,6.79324913]
[1736491332514,2.6227,190.65,190.61,9.41644913]
[1736491333018,2.6226,190.66,190.61,9.41644913]
[1736491333418,9.88174913,190.67,190.61,6.79324913]
[1736491333615,2.6223,190.68,190.61,6.79324913]
[1736491333822,2.6223,190.68,190.63,6.79324913]
[1736491334123,2.6221,190.7,190.63,6.79324913]
[1736491334315,6.79324913,190.72,190.65,6.79324913]
[1736491334715,2.622,190.71,190.66,2.6224]
[1736491334915,4.6841,190.73,190.63,6.79324913]
[1736491334916,6.79324913,190.7,190.63,6.79324913]
[1736491335122,2.6222,190.69,190.64,2.6227]
[1736491336020,6.79324913,190.68,190.63,6.79324913]
[1736491336221,6.79324913,190.66,190.6,6.79324913]
[1736491336823,2.6227,190.65,190.6,6.79324913]
[1736491337019,6.79324913,190.7,190.64,6.79324913]
[1736491337219,2.6223,190.69,190.64,9.41604913]
[1736491337424,4.6841,190.73,190.64,6.79324913]
[1736491337627,6.79324913,190.72,190.66,6.79324913]
[1736491339217,2.6219,190.71,190.67,2.6224]
[1736491340220,2.6217,190.72,190.68,2.6222]
[1736491340419,4.6841,190.73,190.68,6.79324913]
[1736491340616,1.5854,190.73,190.68,6.79324913]
[1736491341521,1.5854,190.73,190.7,9.41524913]
[1736491341822,2.6213,190.75,190.7,9.41524913]
[1736491342229,9.41454913,190.75,190.7,9.41524913]
[1736491342431,6.79324913,190.75,190.7,9.41524913]
[1736491342619,2.6215,190.74,190.7,9.41524913]
[1736491342818,2.6215,190.74,190.7,2.622]
[1736491343026,2.6218,190.72,190.67,2.6223]
[1736491343229,6.79324913,190.75,190.67,6.79324913]
[1736491343423,6.79324913,190.75,190.69,6.79324913]
[1736491343620,1.5758,190.78,190.69,6.79324913]
[1736491343824,6.79324913,190.76,190.69,6.79324913]
[1736491345129,2.6214,190.75,190.7,2.6219]
[1736491347426,2.6215,190.74,190.7,2.6219]
[1736491353734,1.5758,190.78,190.69,6.79324913]
[1736491353933,1.5758,190.78,190.7,2.6219]
[1736491353934,6.79324913,190.76,190.7,2.6219]
[1736491354434,6.79324913,190.77,190.71,2.6219]
[1736491355338,2.6214,190.75,190.71,2.6219]
[1736491355842,2.6215,190.74,190.7,2.622]
[1736491358943,2.6218,190.72,190.62,67.17817779]
[1736491359143,2.6218,190.72,190.66,6.79324913]
[1736491359443,6.79324913,190.67,190.6,6.79324913]
[1736491359643,6.79324913,190.67,190.59,29.06665681]
[1736491359840,6.79324913,190.67,190.59,35.85990594]
[1736491360039,2.6229,190.64,190.59,35.85990594]
[1736491360335,6.79324913,190.65,190.54,7.29838927]
[1736491360540,6.79324913,190.65,190.59,6.79324913]
[1736491360734,6.79324913,190.67,190.6,2.6234]
[1736491360934,6.79324913,190.65,190.54,7.29838927]
[1736491361138,2.6228,190.65,190.6,6.79324913]
[1736491361341,1.5028,190.71,190.62,6.79324913]
[1736491361541,1.5028,190.71,190.64,6.79324913]
[1736491362441,2.6221,190.7,190.64,6.79324913]
[1736491362648,8.29604913,190.71,190.64,6.79324913]
[1736491363450,2.622,190.7,190.64,6.79324913]
[1736491363644,1.5028,190.71,190.64,6.79324913]
[1736491363850,4.1247,190.71,190.66,9.41574913]
[1736491364043,6.79324913,190.75,190.68,6.79324913]
[1736491365250,9.41464913,190.75,190.7,6.79324913]
[1736491365746,9.41464913,190.75,190.69,2.622]
[1736491366446,2.6214,190.75,190.69,2.622]
[1736491366645,9.41464913,190.75,190.7,2.622]
[1736491367549,2.6214,190.75,190.7,2.622]
[1736491367752,3.0432,190.76,190.7,6.79324913]
[1736491368048,9.41444913,190.77,190.7,6.79324913]
[1736491368643,9.41444913,190.77,190.72,2.6217]
[1736491369144,2.6213,190.76,190.7,9.41514913]
[1736491369345,2.6213,190.76,190.7,6.79324913]
[1736491370148,2.6213,190.76,190.71,2.6218]
[1736491370947,9.41424913,190.77,190.72,2.6217]
[1736491372150,2.621,190.77,190.72,2.6217]
[1736491373149,6.79324913,190.78,190.72,2.6217]
[1736491373349,3.2007,190.81,190.72,2.6217]
[1736491373549,6.79324913,190.78,190.72,2.6217]
[1736491373750,3.2007,190.81,190.72,2.6217]
[1736491374053,2.6212,190.76,190.72,2.6217]
[1736491374255,2.6212,190.76,190.71,2.6219]
[1736491374443,9.41444913,190.76,190.71,2.6219]
[1736491376852,9.41444913,190.76,190.72,2.6217]
[1736491379256,9.41444913,190.76,190.71,6.79324913]
[1736491379557,9.41444913,190.76,190.68,4.54]
[1736491379558,6.79324913,190.74,190.68,4.54]
[1736491379754,6.79324913,190.72,190.65,6.79324913]
[1736491379957,6.79324913,190.72,190.66,2.6224]
[1736491381059,2.6219,190.71,190.66,2.6224]
[1736491383062,9.41464913,190.75,190.7,2.622]
[1736491383557,6.79324913,190.75,190.67,6.79324913]
[1736491383862,3.2007,190.81,190.63,4.54]
[1736491383863,6.79324913,190.71,190.65,6.79324913]
[1736491384558,6.79324913,190.73,190.67,6.79324913]
[1736491385560,9.41484913,190.73,190.63,4.54]
[1736491385763,9.41484913,190.73,190.65,6.79324913]
[1736491386559,9.41484913,190.73,190.63,4.54]
[1736491386560,6.79324913,190.71,190.63,4.54]
[1736491386856,6.79324913,190.72,190.66,6.79324913]
[1736491387361,9.41504913,190.72,190.67,2.6224]
[1736491388159,6.79324913,190.7,190.67,2.6224]
[1736491388563,6.79324913,190.72,190.67,2.6224]
[1736491388764,2.6219,190.71,190.67,2.6224]
[1736491390455,9.41494913,190.72,190.68,2.6223]
[1736491391061,6.79324913,190.72,190.68,2.6223]
[1736491392769,9.41494913,190.72,190.68,2.6223]
[1736491392968,6.79324913,190.72,190.66,6.79324913]
[1736491393270,6.79324913,190.72,190.67,2.6224]
[1736491393472,6.79324913,190.72,190.64,6.79324913]
[1736491395166,9.41494913,190.72,190.64,6.79324913]
[1736491397269,9.41494913,190.72,190.68,2.6222]
[1736491397963,2.6217,190.72,190.68,2.6222]
[1736491400969,1.5165,190.73,190.66,6.79324913]
[1736491401467,3.1688,190.74,190.71,2.6218]
[1736491401673,6.79324913,190.78,190.7,6.79324913]
[1736491402165,6.79324913,190.78,190.67,4.54]
[1736491402166,6.79324913,190.8,190.74,6.79324913]
[1736491402665,9.41394913,190.8,190.75,2.6212]
[1736491403469,2.6207,190.8,190.75,2.6212]
[1736491403669,9.41394913,190.8,190.75,2.6212]
[1736491404972,6.79324913,190.78,190.75,2.6212]
[1736491407371,6.79324913,190.78,190.72,6.79324913]
[1736491407571,9.41414913,190.78,190.74,2.6214]
[1736491409474,9.41444913,190.76,190.7,2.622]
[1736491409669,6.79324913,190.76,190.7,6.79324913]
[1736491410573,2.6213,190.75,190.7,6.79324913]
[1736491411770,9.41474913,190.74,190.65,7.29838927]
[1736491412075,6.79324913,190.74,190.67,6.79324913]
[1736491412270,6.79324913,190.74,190.69,2.6221]
[1736491412471,2.6217,190.73,190.69,2.6221]
[1736491414380,6.79324913,190.72,190.69,2.6221]
[1736491417780,2.6215,190.74,190.7,2.6219]
[1736491418171,2.6215,190.74,190.67,6.79324913]
[1736491418375,2.6215,190.74,190.69,2.6221]
[1736491421883,6.79324913,190.75,190.69,2.6221]
[1736491422082,2.6216,190.73,190.69,2.6221]
[1736491425493,9.41484913,190.73,190.69,2.6221]
[1736491425691,6.79324913,190.71,190.65,2.6226]
[1736491426592,3.0621,190.72,190.65,2.6226]
[1736491426593,6.79324913,190.69,190.65,2.6226]
[1736491427096,6.79324913,190.69,190.66,2.6225]
[1736491427393,6.79324913,190.71,190.65,6.79324913]
[1736491428194,5.6839,190.72,190.68,2.6223]
[1736491432000,12.47714913,190.72,190.68,2.6223]
[1736491434805,2.6219,190.71,190.66,2.6224]
[1736491435102,9.85534913,190.72,190.65,6.79324913]
[1736491435696,12.47704913,190.72,190.67,2.6223]
[1736491436093,12.47704913,190.72,190.65,6.79324913]
[1736491436503,9.41474913,190.74,190.7,2.622]
[1736491437298,2.6213,190.75,190.71,2.6219]
[1736491441203,6.79324913,190.76,190.69,6.79324913]
[1736491441508,9.41474913,190.74,190.7,2.622]
[1736491441904,6.79324913,190.72,190.67,6.79324913]
[1736491442101,6.79324913,190.72,190.69,2.6221]
[1736491443106,6.79324913,190.74,190.67,6.79324913]
[1736491443304,9.41474913,190.74,190.7,2.622]
[1736491444515,2.6216,190.73,190.7,2.622]
[1736491445409,2.6216,190.73,190.68,2.6223]
[1736491446407,9.41504913,190.72,190.68,2.6223]
[1736491446714,6.79324913,190.7,190.64,63.33796338]
[1736491447006,6.79324913,190.68,190.64,63.33796338]
[1736491447212,9.41554913,190.68,190.63,7.29838927]
[1736491447614,2.6228,190.64,190.61,7.29838927]
[1736491447807,6.79324913,190.64,190.61,7.29838927]
[1736491448107,4.5955,190.67,190.61,7.29838927]
[1736491448108,6.79324913,190.62,190.61,7.29838927]
[1736491448311,9.41634913,190.62,190.61,7.29838927]
[1736491448511,6.79324913,190.62,190.56,6.79324913]
[1736491449217,4.5955,190.67,190.58,6.79324913]
[1736491449412,6.79324913,190.65,190.58,6.79324913]
[1736491449612,6.79324913,190.65,190.6,9.41654913]
[1736491449613,2.6227,190.65,190.6,9.41654913]
[1736491449808,4.5955,190.67,190.6,6.79324913]
[1736491450007,3.047,190.67,190.62,6.79324913]
[1736491450411,9.84024913,190.67,190.54,29.06665681]
[1736491450610,9.84024913,190.67,190.61,6.79324913]
[1736491451113,9.84024913,190.67,190.54,29.06665681]
[1736491451114,9.84024913,190.67,190.59,6.79324913]
[1736491452119,2.6226,190.66,190.61,2.6232]
[1736491453914,9.41594913,190.65,190.6,2.6234]
[1736491454111,6.79324913,190.65,190.57,6.79324913]
[1736491454310,6.79324913,190.63,190.57,6.79324913]
[1736491454712,6.79324913,190.65,190.57,6.79324913]
[1736491455220,1.6249,190.66,190.61,6.79324913]
[1736491455515,8.29374913,190.67,190.61,6.79324913]
[1736491457217,8.29374913,190.67,190.63,2.623]
[1736491459321,10.91624913,190.67,190.62,2.6231]
[1736491459523,8.29374913,190.67,190.61,6.79324913]
[1736491459716,6.79324913,190.65,190.58,6.79324913]
[1736491459912,9.41604913,190.65,190.59,2.6234]
[1736491461418,6.79324913,190.65,190.59,2.6234]
[1736491461619,2.6229,190.64,190.59,2.6234]
[1736491462128,2.623,190.63,190.59,2.6234]
[1736491462321,6.79324913,190.63,190.55,6.79324913]
[1736491462624,6.79324913,190.61,190.55,2.624]
[1736491462814,2.6235,190.6,190.55,2.624]
[1736491464027,2.6235,190.6,190.53,6.79324913]
[1736491465227,2.6235,190.6,190.55,2.6241]
[1736491473334,6.79324913,190.59,190.55,2.6241]
[1736491473534,9.41684913,190.59,190.55,2.6241]
[1736491473733,6.79324913,190.59,190.52,6.79324913]
[1736491473924,6.79324913,190.57,190.52,6.79324913]
[1736491475233,6.79324913,190.57,190.54,2.6242]
[1736491478629,6.79324913,190.57,190.52,6.79324913]
[1736491478837,6.79324913,190.57,190.53,2.6243]
[1736491479138,1.5029,190.6,190.47,6.79324913]
[1736491479139,6.79324913,190.55,190.47,6.79324913]
[1736491479329,9.41764913,190.53,190.48,2.6249]
[1736491479531,6.79324913,190.53,190.45,7.29838927]
[1736491479733,6.79324913,190.51,190.45,14.0916384]
[1736491480142,6.79324913,190.51,190.44,6.79324913]
[1736491480934,6.79324913,190.49,190.44,2.6255]
[1736491481137,6.79324913,190.47,190.41,6.79324913]
[1736491482235,6.79324913,190.47,190.44,2.6256]
[1736491482630,6.79324913,190.51,190.47,2.6252]
[1736491482829,4.7142,190.52,190.45,6.79324913]
[1736491483233,3.142,190.52,190.47,6.79324913]
[1736491484139,3.142,190.52,190.49,2.6249]
[1736491484640,3.142,190.52,190.47,6.79324913]
[1736491485038,3.142,190.52,190.45,6.79324913]
[1736491485540,3.142,190.52,190.47,2.625]
[1736491488840,4.54,190.53,190.5,2.6247]
[1736491489238,4.54,190.53,190.47,6.79324913]
[1736491489747,4.54,190.53,190.5,2.6247]
[1736491490945,6.79324913,190.54,190.5,2.6247]